Cogmind - Beta 15 @@@ ROGUE MODE // 2025.08.06 @ 14:30:55 Player: C0-2MO Result: Destroyed by G-47 Trooper with Particle Gun Performance ------------- Evolutions (2) 1000 Regions Visited (10) 2000 Robots Destroyed (59) 295 Value Destroyed (1258) 1258 Prototype IDs (2) 40 Alien Tech Used (0) 0 Bonus (630) 630 TOTAL SCORE: 5223 Bonus ------- High Alert Combat Kills 76 Follower Combat Kills 154 Entered Garrisons 400 Cogmind --------- Core Integrity 0/550 Matter 212/300 Energy 39/100 System Corruption 0% Temperature Cool (6) Movement Flying (35) Location -8/Garrison Parts ------- > --- POWER (1) -------- (None) > --- PROPULSION (4) --- Cesium-ion Thruster > --- UTILITY (4) ------ Advanced Visual Processing Unit System Shield > --- WEAPON (2) ------- Katana > --- INVENTORY (5) ---- Micro Nuclear Core Trap Extractor (3/4 Proton Bomb) Flak Cannon Peak State ------------ > --- POWER ------------ Micro Nuclear Core > --- PROPULSION ------- Flight Unit Cesium-ion Thruster Cesium-ion Thruster Cesium-ion Thruster > --- UTILITY ---------- Small Storage Unit Advanced Visual Processing Unit Improved Sensor Array System Shield > --- WEAPON ----------- Greatsword > --- INVENTORY -------- Flight Unit Trap Extractor Flak Cannon Shock Bomb Launcher Heavy Hammer [Rating: 33] Favorites ----------- Power Light Ion Engine Engine Light Ion Engine Power Core Micro Nuclear Core Propulsion Aerolev Unit Treads Light Treads Hover Unit Aerolev Unit Flight Unit Cesium-ion Thruster Utility Targeting Computer Device Seismic Detector Storage Small Storage Unit Processor Targeting Computer Hackware System Shield Protection Hardened Medium Armor Plating Weapon Heavy Hammer Energy Gun Medium Laser Ballistic Gun Improved Assault Rifle Ballistic Cannon Flak Cannon Launcher Rocket Launcher Impact Weapon Heavy Hammer Slashing Weapon Greatsword Build | -11 -10 -10 -9 -9 -9 -8 -8 -8 -8 -8 ------- Run | Yrd Mat Min Mat Min Exi Min Mat Gar Mat Gar Slots Evolved 4 | . . . 2 . . . 2 . . . Power . | . . . . . . . . . . . Propulsion 2 | . . . 1 . . . 1 . . . Utility 2 | . . . 1 . . . 1 . . . Weapon . | . . . . . . . . . . . Parts Attached 47 | 4 5 1 17 . . 3 13 . 1 3 Power 3 | . . . 2 . . . 1 . . . Engine 2 | . . . 2 . . . . . . . Core 1 | . . . . . . . 1 . . . Reactor . | . . . . . . . . . . . Propulsion 20 | 2 2 . 6 . . 2 7 . . 1 Treads 2 | 2 . . . . . . . . . . Leg . | . . . . . . . . . . . Wheel . | . . . . . . . . . . . Hover 5 | . 2 . 3 . . . . . . . Flight 13 | . . . 3 . . 2 7 . . 1 Utility 12 | 1 1 1 4 . . . 4 . 1 . Device 4 | 1 . 1 1 . . . . . 1 . Storage 2 | . . . 1 . . . 1 . . . Processor 2 | . 1 . . . . . 1 . . . Hackware 2 | . . . . . . . 2 . . . Protection 2 | . . . 2 . . . . . . . Artifact . | . . . . . . . . . . . Weapon 12 | 1 2 . 5 . . 1 1 . . 2 Energy Gun 2 | 1 1 . . . . . . . . . Energy Cannon . | . . . . . . . . . . . Ballistic Gun 1 | . . . 1 . . . . . . . Ballistic Cannon 2 | . . . 2 . . . . . . . Launcher 3 | . . . 1 . . 1 . . . 1 Special Weapon . | . . . . . . . . . . . Impact Weapon 2 | . 1 . 1 . . . . . . . Slashing Weapon 2 | . . . . . . . 1 . . 1 Piercing Weapon . | . . . . . . . . . . . Special Melee Weapon . | . . . . . . . . . . . Unidentified Prototypes 2 | . . . 2 . . . . . . . Parts Lost 24 | . 1 . 6 . . 3 7 1 1 5 Power 2 | . . . 1 . . 1 . . . . Propulsion 12 | . . . 3 . . . 5 . 1 3 Utility 5 | . . . 1 . . 2 . 1 . 1 Weapon 5 | . 1 . 1 . . . 2 . . 1 Highest Loss Streak 6 | . 1 . 2 . . 2 6 1 1 5 To Critical Strikes 1 | . . . . . . . 1 . . . Average Backups 3 | . 3 5 3 4 4 4 3 4 4 3 Power . | . 1 1 . . . . . . . . Propulsion . | . . 1 . . . . . 1 1 . Utility . | . . 1 1 1 1 1 1 1 1 1 Weapon 2 | . 1 2 1 3 3 3 2 2 2 2 Tool/Special . | . . . . . . . . . . . Unused Backups . | . . . . . . . . . . . Power . | . . . . . . . . . . . Propulsion . | . . . . . . . . . . . Utility . | . . . . . . . . . . . Weapon . | . . . . . . . . . . . Tool/Special . | . . . . . . . . . . . Average Slot Usage (%) 69 | . 69 71 66 88 88 74 49 90 86 76 Engine 3 | . . . 4 11 11 8 . . . . Core 1 | . . . . . . . 3 9 9 6 Treads 2 | . 23 . . . . . . . . . Hover 15 | . 4 28 21 33 33 29 3 . . . Flight 10 | . . . 4 . . 3 25 36 33 29 Device 4 | . 14 14 2 . . . . . 7 8 Storage 1 | . . . 1 . . . . 9 9 5 Processor 5 | . 13 14 5 . . . 1 9 9 9 Hackware 2 | . . . . . . . 3 18 9 9 Protection 6 | . . . 10 22 22 11 . . . . Energy Gun 3 | . 13 14 2 . . . . . . . Ballistic Gun 2 | . . . 2 11 11 2 3 . . . Ballistic Cannon 1 | . . . 5 . . . . . . . Impact Weapon 4 | . . . 5 11 11 11 5 . . . Slashing Weapon 1 | . . . . . . . 3 9 9 7 Peak Build Rating 33 | 4 7 8 25 23 23 23 32 32 33 33 Average Rating 16 | 2 5 7 14 23 23 19 15 31 31 28 On Entrance 17 | . 4 7 7 23 23 23 11 32 29 32 Naked Turns 4 | . . . 4 . . . . . . . Heaviest Build 31 | 3 4 4 31 24 24 24 16 16 17 17 Greatest Support 24 | 3 20 14 24 24 24 24 19 19 19 19 Greatest Overweight (x) 1 | . . . 1 . . . . . 1 . Average Overweight (x) . | . . . . . . . . . . . Largest Inventory Capacity 8 | 5 5 5 8 5 5 5 8 8 8 8 Average Capacity 5 | 5 5 5 5 5 5 5 5 8 8 6 Most Carried 5 | 1 5 5 5 4 4 5 5 4 5 5 Average Carried 3 | . 3 5 3 4 4 4 3 4 4 4 Final Capacity 8 | 5 5 5 5 5 5 5 8 8 8 5 Final Carried 5 | 1 5 5 4 4 4 4 4 4 5 3 Class Distribution -------------------- 77% | Mutant 15% | Sprinter 6% | Hacker-Sprinter Dominant Class ---------------- Mutant | -10/Materials Mutant | -10/Mines Mutant | -9/Materials Mutant | -9/Mines Mutant | -9/Exiles Mutant | -8/Mines Mutant | -8/Materials Hacker-Sprinter | -8/Garrison Sprinter | -8/Materials Sprinter | -8/Garrison Resources | -11 -10 -10 -9 -9 -9 -8 -8 -8 -8 -8 ----------- Run | Yrd Mat Min Mat Min Exi Min Mat Gar Mat Gar Matter Collected 1059 | 221 49 20 488 . . 87 192 . . 2 Remotely . | . . . . . . . . . . . Salvage Created 1275 | 72 385 . 493 . . 105 144 . . 76 Parts 89 | 5 15 . 26 . . 12 23 . . 8 Haulers Intercepted . | . . . . . . . . . . . Recyclers Shooed 1 | 1 . . . . . . . . . . Parts Field Recycled . | . . . . . . . . . . . Retrieved Matter . | . . . . . . . . . . . Parts Self-Destructed . | . . . . . . . . . . . Prevented . | . . . . . . . . . . . Kills | -11 -10 -10 -9 -9 -9 -8 -8 -8 -8 -8 ------- Run | Yrd Mat Min Mat Min Exi Min Mat Gar Mat Gar Combat Hostiles Destroyed 50 | . 7 . 16 . . 12 11 . . 4 Melee 4 | . 1 . . . . . 3 . . . Guns 4 | . 3 . . . . . 1 . . . Cannons 5 | . . . 5 . . . . . . . AOE 34 | . 1 . 10 . . 12 7 . . 4 Classes Destroyed 7 | 2 2 . 3 . . . . . . . Tunneler 1 | 1 . . . . . . . . . . Recycler 6 | 1 2 . 2 . . . 1 . . . Mechanic 1 | . . . 1 . . . . . . . Watcher 1 | . . . 1 . . . . . . . Swarmer 35 | . 3 . 7 . . 10 11 . . 4 Grunt 14 | . 4 . 8 . . 2 . . . . Sentry 1 | . . . 1 . . . . . . . Best Kill Streak 8 | 2 5 . 8 . . 5 8 . . 4 Combat Bots Only 8 | . 3 . 8 . . 5 8 . . 4 Max Kills in Single Turn 6 | 1 1 . 4 . . 3 6 . . 2 Gunslinging . | . . . . . . . . . . . Exploded 6 | . 1 . 4 . . 3 6 . . 2 Melee 1 | . 1 . . . . . 1 . . . Uniques/NPCs Destroyed . | . . . . . . . . . . . Combat | -11 -10 -10 -9 -9 -9 -8 -8 -8 -8 -8 -------- Run | Yrd Mat Min Mat Min Exi Min Mat Gar Mat Gar Hostile Shots Fired 433 | . 47 . 142 4 . 60 130 9 5 36 Missed 171 | . 18 . 54 2 . 28 56 4 2 7 Hits 262 | . 29 . 88 2 . 32 74 5 3 29 Projectile 262 | . 29 . 88 2 . 32 74 5 3 29 Critical Strikes 9 | . 1 . 2 . . . 6 . . . Damage Taken 3168 | 16 362 . 1079 29 . 361 863 78 41 339 Core 1000 | 16 79 . 292 . . 52 419 45 18 79 Absorbed by Shields 93 | . . . . . . . . . . 93 Regen/Repaired (Parts) 160 | . . . 98 . . . 32 . 30 . Core Remaining (%) 56 | 93 . 62 . . . 14 . . . . Volleys Fired 106 | 5 27 . 41 . . 17 11 . . 5 Largest 2 | 1 1 . 2 . . 1 1 . . 1 Hottest 74 | 40 50 . 74 . . 33 33 . . 36 Shots Fired 117 | 5 27 . 52 . . 17 11 . . 5 Gun 66 | 5 27 . 16 . . 9 9 . . . Cannon 29 | . . . 29 . . . . . . . Launcher 22 | . . . 7 . . 8 2 . . 5 Special . | . . . . . . . . . . . Kinetic 51 | . . . 33 . . 9 9 . . . Thermal 15 | . 3 . 12 . . . . . . . Explosive 17 | . . . 7 . . 8 2 . . . Electromagnetic 34 | 5 24 . . . . . . . . 5 Robot Hit Streak 11 | 2 10 . 11 . . 3 2 . . 3 Robot Miss Streak 9 | 1 2 . 9 . . 5 3 . . 2 Penetration Max . | . . . . . . . . . . . Secondary Targets . | . . . . . . . . . . . Shots Hit Robots 99 | 3 25 . 49 . . 7 12 . . 3 Core Hits 74 | 3 9 . 31 . . 15 12 . . 4 Critical Kills 2 | . . . . . . . 2 . . . Critical Parts Destroyed 3 | . . . 3 . . . . . . . Critical Strikes 6 | . . . 4 . . . 2 . . . Burn 1 | . . . 1 . . . . . . . Smash 5 | . . . 3 . . . 2 . . . Melee Attacks 72 | . 3 . 22 . . 1 29 12 3 2 Impact 40 | . 3 . 22 . . 1 14 . . . Slashing 32 | . . . . . . . 15 12 3 2 Piercing . | . . . . . . . . . . . Sneak Attacks 7 | . 1 . 5 . . . 1 . . . Combat Hostiles . | . . . . . . . . . . . Follow-up Attacks . | . . . . . . . . . . . Damage Inflicted 4328 | 63 720 . 1575 . . 1018 760 . . 192 Guns 606 | 43 290 . 148 . . 64 61 . . . Cannons 297 | . . . 297 . . . . . . . Explosions 2383 | 20 232 . 605 . . 954 380 . . 192 Melee 1042 | . 198 . 525 . . . 319 . . . Ramming . | . . . . . . . . . . . Kinetic 455 | . . . 330 . . 64 61 . . . Thermal 393 | 20 258 . 115 . . . . . . . Explosive 1939 | . . . 605 . . 954 380 . . . Electromagnetic 499 | 43 264 . . . . . . . . 192 Impact 951 | . 198 . 525 . . . 228 . . . Slashing 91 | . . . . . . . 91 . . . Piercing . | . . . . . . . . . . . Highest Corruption . | . . . . . . . . . . . Average Corruption . | . . . . . . . . . . . Corruption Purged . | . . . . . . . . . . . Corruption Blocked . | . . . . . . . . . . . Overload Shots . | . . . . . . . . . . . Overflow Damage 490 | . 120 . 349 . . 18 3 . . . Projectiles . | . . . . . . . . . . . Explosions 127 | . 2 . 104 . . 18 3 . . . Melee 363 | . 118 . 245 . . . . . . . Knockbacks 11 | . 1 . 10 . . . . . . . Impact 3 | . 1 . 2 . . . . . . . Kinetic 8 | . . . 8 . . . . . . . Secondary . | . . . . . . . . . . . Self-Inflicted Damage 166 | 16 5 . 39 . . 84 . . . 22 Shots 8 | 1 1 . 2 . . 2 . . . 2 Rammed . | . . . . . . . . . . . Targets Rammed . | . . . . . . . . . . . Kicked . | . . . . . . . . . . . Crushed . | . . . . . . . . . . . Highest Temperature 174 | 7 16 . 174 6 . 18 9 5 . . Average Temperature 32 | 4 6 . 46 5 . 8 4 5 . . Received Heat Transfer 1065 | . 129 . 390 15 . 27 342 18 9 135 Siege Activations . | . . . . . . . . . . . Martial Activations . | . . . . . . . . . . . Shielding Activations . | . . . . . . . . . . . Robots Disrupted . | . . . . . . . . . . . Combat Hostiles . | . . . . . . . . . . . Robots Corrupted 5 | . 2 . 3 . . . . . . . Combat Hostiles 3 | . 2 . 1 . . . . . . . Parts Fried 9 | . 3 . 6 . . . . . . . Impact Corruptions 11 | . 3 . 8 . . . . . . . Robots Melted . | . . . . . . . . . . . Combat Hostiles . | . . . . . . . . . . . Parts Melted . | . . . . . . . . . . . Heat Transferred 831 | 50 374 . 407 . . . . . . . Parts Sabotaged . | . . . . . . . . . . . Parts Stolen . | . . . . . . . . . . . Parts Stripped . | . . . . . . . . . . . Power Chain Reactions 7 | 1 3 . . . . . . . . 3 Alert | -11 -10 -10 -9 -9 -9 -8 -8 -8 -8 -8 ------- Run | Yrd Mat Min Mat Min Exi Min Mat Gar Mat Gar Maximum Alert Level 3 | . . . 3 1 . 1 2 2 1 1 Low Security (%) 48 | 100 100 100 39 51 . 79 23 . . 13 Level 1 27 | . . . 7 48 . 20 40 50 100 86 Level 2 16 | . . . 28 . . . 35 49 . . Level 3 7 | . . . 24 . . . . . . . Level 4 . | . . . . . . . . . . . Level 5 . | . . . . . . . . . . . High Security . | . . . . . . . . . . . Max Security . | . . . . . . . . . . . Peak Influence 755 | 10 137 47 755 291 . 254 591 499 324 339 Initial 384 | . 6 47 . 291 . . 91 384 245 197 Average 259 | 3 62 15 416 133 . 120 335 416 257 307 Influence Increases 2965 | 10 248 . 1119 7 . 354 760 170 139 158 Destroy 0b10 Robot/C 1220 | . 140 . 540 . . 240 220 . . 80 Destroy 0b10 Robot/NC 50 | 10 10 . 25 . . . 5 . . . Destroy Leader 204 | . 30 . 104 . . 30 30 . . 10 Allied During Kill 15 | . . . 15 . . . . . . . Successful Hack 95 | . 4 . 41 7 . . 12 . 31 . Select Force Hacks 90 | . . . 30 . . . 60 . . . Disable Machine 75 | . 15 . 30 . . 15 15 . . . Anti-Garrison Action 100 | . . . . . . . . 100 . . Destroy Structure 186 | . 19 . 49 . . 54 28 10 3 23 Partial Spotted 135 | . . . 60 . . . 60 . . 15 Lose Combat Pursuer 795 | . 30 . 225 . . 15 330 60 105 30 Influence Decreases 2660 | . 136 122 372 754 . 120 403 257 339 157 Entered New Map 1251 | . 4 75 . 456 . . 143 207 259 107 Time Decay 824 | . 122 47 275 30 . 90 190 . 70 . Lost Part 237 | . 10 . 57 . . 30 70 10 10 50 Lost Ally 80 | . . . 40 . . . . 40 . . Purge Threat 268 | . . . . 268 . . . . . . Squads Dispatched 18 | . 2 . 7 . . . 8 . 1 . Investigation 10 | . . . 4 . . . 5 . 1 . Extermination . | . . . . . . . . . . . Reinforcement 8 | . 2 . 3 . . . 3 . . . Assault . | . . . . . . . . . . . Garrison . | . . . . . . . . . . . Intercept . | . . . . . . . . . . . Searches Triggered . | . . . . . . . . . . . Construction Impeded . | . . . . . . . . . . . Haulers Reinforced . | . . . . . . . . . . . Active Scanning Responses . | . . . . . . . . . . . Cargo Convoy Interrupts . | . . . . . . . . . . . Stealth | -11 -10 -10 -9 -9 -9 -8 -8 -8 -8 -8 --------- Run | Yrd Mat Min Mat Min Exi Min Mat Gar Mat Gar Distress Signals 8 | . 1 . 5 . . . 2 . . . Communications Jammed . | . . . . . . . . . . . Distress Signals . | . . . . . . . . . . . Times Spotted 156 | . 15 . 48 3 . 14 46 12 10 8 Peak Tracking Total 17 | . 4 . 14 3 . 6 17 14 5 6 Tactical Retreats 23 | . 2 . 6 . . 1 10 1 2 1 Traps | -11 -10 -10 -9 -9 -9 -8 -8 -8 -8 -8 ------- Run | Yrd Mat Min Mat Min Exi Min Mat Gar Mat Gar Traps Triggered 7 | . 1 . 1 . . . . . . 5 Indirectly 2 | . . . . . . . . . . 2 Trap Hack Attempts . | . . . . . . . . . . . Triggered . | . . . . . . . . . . . Disarmed . | . . . . . . . . . . . Reprogrammed . | . . . . . . . . . . . Reused . | . . . . . . . . . . . Traps Extracted . | . . . . . . . . . . . Installed . | . . . . . . . . . . . Triggered . | . . . . . . . . . . . Most Traps Carried 3 | . . 3 3 3 3 3 3 3 3 3 Machines | -11 -10 -10 -9 -9 -9 -8 -8 -8 -8 -8 ---------- Run | Yrd Mat Min Mat Min Exi Min Mat Gar Mat Gar Machines Disabled 6 | . 1 . 2 . . 1 1 1 . . Max in Single Turn 1 | . 1 . 1 . . 1 1 1 . . Garrison Relay 1 | . . . . . . . . 1 . . Machines Repaired . | . . . . . . . . . . . Machines Dismantled . | . . . . . . . . . . . Machines Sabotaged . | . . . . . . . . . . . Overloaded Fab Kills . | . . . . . . . . . . . Hacking | -11 -10 -10 -9 -9 -9 -8 -8 -8 -8 -8 --------- Run | Yrd Mat Min Mat Min Exi Min Mat Gar Mat Gar Machines Accessed 35 | . 2 . 12 1 1 . 12 1 6 . Terminals 22 | . 2 . 7 1 . . 7 1 4 . Fabricators . | . . . . . . . . . . . Repair Stations 5 | . . . 2 . . . 2 . 1 . Recycling Units 2 | . . . 2 . . . . . . . Scanalyzers 3 | . . . 1 . . . 2 . . . Garrison Access 2 | . . . . . . . 1 . 1 . Total Hacks 107 | . 6 . 38 5 8 . 24 1 25 . Successful 63 | . 1 . 25 4 8 . 10 1 14 . Failed 44 | . 5 . 13 1 . . 14 . 11 . Catastrophic 1 | . . . . . . . . . 1 . Database Lockouts . | . . . . . . . . . . . Manual 76 | . 6 . 27 4 . . 19 1 19 . Terminals 75 | . 6 . 28 5 . . 17 1 18 . Fabricators . | . . . . . . . . . . . Repair Stations 12 | . . . 3 . . . 3 . 6 . Recycling Units 5 | . . . 5 . . . . . . . Scanalyzers 4 | . . . 2 . . . 2 . . . Garrison Access 3 | . . . . . . . 2 . 1 . Terminal Hacks 19 | . . . 4 4 8 . 2 . 1 . Record 8 | . . . . . 8 . . . . . Robot Schematic 1 | . . . . 1 . . . . . . Robot Analysis 1 | . . . 1 . . . . . . . Branch Access Points 2 | . . . 1 . . . 1 . . . Terminal Index 1 | . . . 1 . . . . . . . Unreport Threat 2 | . . . . 2 . . . . . . Registered Components 1 | . . . 1 . . . . . . . Zone Layout 3 | . . . . 1 . . 1 . 1 . Fabricator Hacks . | . . . . . . . . . . . Repair Station Hacks 5 | . . . 2 . . . . . 3 . Scan Component 3 | . . . 1 . . . . . 2 . Repair 2 | . . . 1 . . . . . 1 . Recycling Unit Hacks . | . . . . . . . . . . . Scanalyzer . | . . . . . . . . . . . Garrison Access Hacks 2 | . . . . . . . 1 . 1 . Unlock Access 2 | . . . . . . . 1 . 1 . Unauthorized Hacks 37 | . 1 . 19 . . . 7 1 9 . Terminals 28 | . 1 . 15 . . . 3 1 8 . Track 5 | . . . 4 . . . . . 1 . Botnet 6 | . . . 4 . . . . . 2 . Disrupt 3 | . . . 1 . . . 1 . 1 . Skim 12 | . 1 . 6 . . . 1 . 4 . Search 1 | . . . . . . . 1 . . . Override 1 | . . . . . . . . 1 . . Fabricators . | . . . . . . . . . . . Repair Stations 3 | . . . 1 . . . 1 . 1 . Patch 3 | . . . 1 . . . 1 . 1 . Recycling Units 2 | . . . 2 . . . . . . . Reject 1 | . . . 1 . . . . . . . Mask 1 | . . . 1 . . . . . . . Scanalyzers 3 | . . . 1 . . . 2 . . . Extract 3 | . . . 1 . . . 2 . . . Garrison Access 1 | . . . . . . . 1 . . . Reprogram 1 | . . . . . . . 1 . . . Data Cores Recovered . | . . . . . . . . . . . Used . | . . . . . . . . . . . Hacking Detections 25 | . 2 . 9 1 . . 8 . 5 . Full Trace Events 2 | . . . 2 . . . . . . . Feedback Events . | . . . . . . . . . . . Feedback Blocked . | . . . . . . . . . . . Robot Schematics Acquired 1 | . . . . 1 . . . . . . Robots Built . | . . . . . . . . . . . Authchips . | . . . . . . . . . . . Time . | . . . . . . . . . . . Total Robot Build Rating . | . . . . . . . . . . . Part Schematics Acquired 10 | . . . 5 . . . 5 . . . Parts Built . | . . . . . . . . . . . Authchips . | . . . . . . . . . . . Time . | . . . . . . . . . . . Total Part Build Rating . | . . . . . . . . . . . Parts Repaired 2 | . . . 1 . . . . . 1 . Time 70 | . . . 32 . . . . . 38 . Parts Recycled . | . . . . . . . . . . . Recycled Matter . | . . . . . . . . . . . Retrieved Matter . | . . . . . . . . . . . Retrieved Components . | . . . . . . . . . . . Parts Scanalyzed . | . . . . . . . . . . . Part Schematics Acquired . | . . . . . . . . . . . Parts Damaged . | . . . . . . . . . . . Bothacking | -11 -10 -10 -9 -9 -9 -8 -8 -8 -8 -8 ------------ Run | Yrd Mat Min Mat Min Exi Min Mat Gar Mat Gar Used RIF Installer . | . . . . . . . . . . . Robots Hacked . | . . . . . . . . . . . Non-combat . | . . . . . . . . . . . Combat . | . . . . . . . . . . . Robot Hacks Applied . | . . . . . . . . . . . Relay Couplers Released 4 | . . . . . . . . 4 . . Machine Destruction 4 | . . . . . . . . 4 . . Fabnet Peak Effective % . | . . . . . . . . . . . Robots Rewired . | . . . . . . . . . . . Allies Hacked . | . . . . . . . . . . . Hacks Repelled . | . . . . . . . . . . . Allies | -11 -10 -10 -9 -9 -9 -8 -8 -8 -8 -8 -------- Run | Yrd Mat Min Mat Min Exi Min Mat Gar Mat Gar Total Allies 4 | . . 2 . . . . 2 . . . Largest Group 2 | . . 2 2 . . . 2 2 . . Highest-Rated Group 41 | . . 41 41 . . . 32 32 . . Highest-Rated Ally 31 | . . 31 31 . . . 16 16 . . Initial Warlord ECA Mod 2 | . . . . . . . . . 1 1 Total Orders . | . . . . . . . . . . . Ally Attacks 40 | . . . 35 . . . . 5 . . Total Damage 659 | . . . 611 . . . . 48 . . Kills 12 | . . . 12 . . . . . . . Allies Corrupted . | . . . . . . . . . . . Allies Melted . | . . . . . . . . . . . Intel | -11 -10 -10 -9 -9 -9 -8 -8 -8 -8 -8 ------- Run | Yrd Mat Min Mat Min Exi Min Mat Gar Mat Gar Active Infowar (turns) 921 | 6 290 166 33 . . . 68 83 151 124 Optics 426 | . . . . . . . 68 83 151 124 Sensors 253 | . . . . . . . . . 139 114 Seismic 495 | 6 290 166 33 . . . . . . . Robot Analysis Total 1 | . . . 1 . . . . . . . Derelict Logs Recovered 4 | . . 2 . 2 . . . . . . Drone Launches . | . . . . . . . . . . . Drone Recoveries . | . . . . . . . . . . . Exploration | -11 -10 -10 -9 -9 -9 -8 -8 -8 -8 -8 ------------- Run | Yrd Mat Min Mat Min Exi Min Mat Gar Mat Gar Turns Passed 2353 | 37 290 170 683 151 57 209 398 83 151 124 Spaces Moved 3645 | 40 358 270 806 215 136 400 791 171 296 162 Core 342 | 40 281 . 9 . . . 12 . . . Treads 2 | . 2 . . . . . . . . . Legs . | . . . . . . . . . . . Wheels . | . . . . . . . . . . . Hover 1560 | . 75 270 534 215 136 318 12 . . . Flight 1741 | . . . 263 . . 82 767 171 296 162 Fastest Speed 27 | 50 50 56 34 42 42 37 27 27 27 27 Average Speed 41 | 50 51 56 51 42 42 40 32 27 27 27 Slowest Speed 160 | 50 160 56 102 42 42 46 50 27 109 32 Overloaded Moves . | . . . . . . . . . . . Propulsion Burnouts . | . . . . . . . . . . . Robots Hopped 21 | . . . 3 . . . 17 . 1 . Potential Cave-ins . | . . . . . . . . . . . Cave-ins Triggered . | . . . . . . . . . . . Exploration Rate (%) 52 | 3 53 68 71 62 52 83 76 47 31 30 Regions Visited 10 Branch Regions 4 Pre-discovered Areas 3 | . . 1 . 1 1 . . . . . Known Exits Taken 4 | . . . 1 . . 1 1 . 1 . Unknown Exits Taken 5 | 1 1 1 . 1 1 . . . . . Scrap Searched 6 | . . 1 . 3 . 2 . . . . Spaces Dug 36 | . . . 10 . . . 12 10 3 1 Terrain Destroyed 185 | . 21 . 48 . . 67 27 10 3 9 Melee 36 | . . . 10 . . . 12 10 3 1 Projectile . | . . . . . . . . . . . AOE 149 | . 21 . 38 . . 67 15 . . 8 Terrain Rammed . | . . . . . . . . . . . Walls Destroyed . | . . . . . . . . . . . Machines Disabled . | . . . . . . . . . . . Actions | -11 -10 -10 -9 -9 -9 -8 -8 -8 -8 -8 --------- Run | Yrd Mat Min Mat Min Exi Min Mat Gar Mat Gar Total 4192 | 49 427 287 978 275 135 425 842 183 357 234 Wait 272 | . 30 16 80 61 . 2 9 1 54 19 Move 3597 | 39 357 269 799 214 135 399 759 170 294 162 Hop 18 | . . . 3 . . . 14 . 1 . Pick Up 13 | 1 4 . 3 . . 1 2 . 2 . Fast Attach 35 | 4 2 . 14 . . 1 11 . 2 1 Attach 15 | . 1 . 7 . . 1 2 . . 4 Detach 6 | . 1 . 3 . . . . . . 2 Swap 9 | . 2 2 1 . . 1 3 . . . Drop 13 | . . . 5 . . 2 2 . 1 3 Fire 106 | 5 27 . 41 . . 17 11 . . 5 Melee 72 | . 3 . 22 . . 1 29 12 3 2 Ram . | . . . . . . . . . . . Kick . | . . . . . . . . . . . Crush . | . . . . . . . . . . . Escape Stasis 36 | . . . . . . . . . . 36 Rewire . | . . . . . . . . . . . Trap . | . . . . . . . . . . . Miscellaneous . | . . . . . . . . . . . Route ------- -11/Scrapyard -10/Materials -10/Mines -9/Materials (discovered 4 exits: *Mat x3 / *Min) -9/Mines (discovered 2 exits: *Mat / *Exi) -9/Exiles -8/Mines -8/Materials (discovered 4 exits: [*Fac x3] / Gar) -8/Garrison (discovered 3 exits: *Mat x3) -8/Materials -8/Garrison History --------- Turn | Location | Event 5 | -11/Scrapyard | Discovered new exit (range 15) 38 | -11/Scrapyard | Entered Materials 207 | -10/Materials | Discovered new exit (range 15) 317 | -10/Materials | Build established: Mutant 328 | -10/Materials | Entered Mines 334 | -10/Mines | Learned Materials interactive machine intel 370 | -10/Mines | Learned location of Zion (-6) 378 | -10/Mines | Found a hidden stash of uninstalled traps 485 | -10/Mines | Discovered new exit (range 9) 498 | -10/Mines | Entered Materials 498 | -9/Materials | Accompanied by 2 allies 498 | -9/Materials | Evolved 2 slots: Propulsion x1, Utility x1 499 | -9/Materials | Loaded intel: 18 interactive machine locations 503 | -9/Materials | Led the pair of lost Derelicts to an unsafe place 594 | -9/Materials | Repaired Imp. Hover Unit 671 | -9/Materials | Discovered new exit (range 9) 804 | -9/Materials | Identified exit to Mines 829 | -9/Materials | Core integrity fell below 50% 849 | -9/Materials | Destroyed 8 combat bots 952 | -9/Materials | Discovered new exit (range 11) 1077 | -9/Materials | Identified exit to Materials 1138 | -9/Materials | Learned Storage machine intel 1181 | -9/Materials | Entered Mines 1208 | -9/Mines | A weapon hastily lodged in a ceiling crevice suddenly fell to the ground 1234 | -9/Mines | Learned Materials garrison access intel 1324 | -9/Mines | Discovered exit to Materials (range 8) 1331 | -9/Mines | Deemed a non-threat by the Exiles lab entrance 1331 | -9/Mines | Discovered new exit (range 5) 1332 | -9/Mines | Entered Exiles 1343 | -9/Exiles | Met 8R-AWN 1350 | -9/Exiles | Met EX-HEX 1362 | -9/Exiles | Met EX-BIN 1368 | -9/Exiles | Met EX-DEC 1386 | -9/Exiles | Discovered new exit (range 10) 1389 | -9/Exiles | Entered Mines 1427 | -8/Mines | Core integrity fell below 20% 1588 | -8/Mines | Discovered exit to Materials (range 12) 1598 | -8/Mines | Entered Materials 1598 | -8/Materials | Evolved 2 slots: Propulsion x1, Utility x1 1599 | -8/Materials | Loaded intel: 1 garrison access location 1719 | -8/Materials | Destroyed 8 combat bots 1748 | -8/Materials | Core integrity fell below 50% 1763 | -8/Materials | Discovered new exit (range 13) 1791 | -8/Materials | Lost 6 parts (4n2w) 1846 | -8/Materials | Discovered new exit (range 15) 1901 | -8/Materials | Discovered new exit (range 4) 1991 | -8/Materials | Identified exit to Garrison 1996 | -8/Materials | Entered Garrison 1996 | -8/Garrison | Accompanied by 2 allies 2038 | -8/Garrison | Garrison Relay disabled 2040 | -8/Garrison | Triggered checkpoint 2062 | -8/Garrison | Triggered checkpoint 2065 | -8/Garrison | Identified exit to Materials 2067 | -8/Garrison | Core integrity fell below 20% 2079 | -8/Garrison | Entered Materials 2143 | -8/Materials | Repaired Cesium-ion Thruster 2230 | -8/Materials | Identified exit to Garrison 2230 | -8/Materials | Entered Garrison 2306 | -8/Garrison | Triggered checkpoint 2316 | -8/Garrison | Triggered checkpoint 2316 | -8/Garrison | Triggered checkpoint 2354 | -8/Garrison | Destroyed by G-47 Trooper with Particle Gun Last Messages --------------- area. 02342_ Field strength at 70. 02343_ Field strength at 55. 02344_ Field strength at 86. 02344_ Imp. Sensor Array destroyed. 02344_ Field strength at 40. 02345_ Field strength at 77. 02345_ Field strength at 25. 02346_ Field strength at 72. 02346_ Field strength at 10. 02347_ Field strength at 62. 02347_ Stasis field depleted. 02348_ Field strength at 57. 02349_ Field strength at 48. 02350_ Field strength at 43. 02351_ Field strength at 30. 02352_ Field strength at 25. 02352_ Cesium-ion Thruster destroyed. 02353_ Dropped Shock Bomb Launcher. 02353_ Field strength at 11. Map ----- +----------------------------------------------------+ | ?????????????????????????????????????????????????? | | ?????????????????????????????????????????????????? | | ?????????????????????????????????????????????????? | | ?????????????????????????????????????????????????? | | ?????????????????????????????????????????????????? | | ?????????????????????????????????????????????????? | | ?????????????????????????????????????????????????? | | ?????????????????????????????????????????????????? | | ?????????????????????????????????????????????????? | | ?????????????????????????????????????????????????? | | ?????????????????????????????????????????????????? | | ?????????????????????????????????????????????????? | | ?????????????????????????????????????????????????? | | ?????????????????????????????????????????????????? | | ?????????????????????????????????????????????????? | | ?????????????????????????????????????????????????? | | ?????????????????????????????????????????????????? | | ?????????????????????????????????????????????????? | | ?????????????????????????????????????????????????? | | ?????????????????????????????????????????????????? | | ?????????????????????????????????????????????????? | | ?????????????????????????????????????????????????? | | ?????????????????????????????????????????????????? | | ???????????????????################ ####????????? | | ???????????????????# g ????? | | ???????????????????# g @] ????? | | ???????????????????# ^# ######## ###?????????????? | | ???????????????????# ###????????????????????????? | | ???????????????????# #??????????????????????????? | | ???????????????????# #??????????????????????????? | | ????????#??????????# #??????????????????????????? | | ????????# ???####??# #??????????????????????????? | | ????????# ??# ?# #??????????????????????????? | | ????????# ## ## ##?????????????????????????? | | ????????# #?????????????????????????? | | ????????# #?????????????????????????? | | ????????# #?????????????????????????? | | ????????# ## ## #?????????????????????????? | | ????????# ## ## ###???????????????????????? | | ????????" #???????????????????????? | | ????????" #???????????????????????? | | ????????" #???????????????????????? | | ????????" #???????????????????????? | | ????????# ## ## ###???????????????????????? | | ????????# ## ## !########################### | | ????????# " | | ????????# " | | ????????# #######" ######## ###### | | ????????# ## ## ##?????## ##?????# #????? | | ????????# ?# ?# ????????# #????# ???? | +----------------------------------------------------+ Best States ------------- Heat Dissipation 38 Energy Generation 15 Energy Capacity 150 Matter Stores 300 Matter Capacity 300 Sight Range 20 Robot Scan Range 15 Terrain Scan Density 10 Armor Coverage 450 Evasion (%) 64 Targeting Accuracy 5 Recoil Reduction 1 Offensive Hacking 10 Defensive Hacking 10 Trap Extractor Capacity 4 Item Schematics ----------------- VTOL Module | -9/Materials | Extracted Med. Matter Pod | -9/Materials | Extracted Mining Laser | -9/Materials | Extracted Shield Generator | -9/Materials | Extracted Imp. Aluminum Leg | -9/Materials | Extracted Lgt. Ion Engine | -8/Materials | Extracted Imp. Targeting Computer | -8/Materials | Extracted Ion Cannon | -8/Materials | Extracted Field Laser | -8/Materials | Extracted Com. Battery | -8/Materials | Extracted Robot Schematics ------------------ M-13 Machinist | -9/Mines | Hacked Fabricated ------------ Nothing Repaired ---------- Imp. Hover Unit | 40% | -9/Materials Cesium-ion Thruster | 24% | -8/Materials Alien Tech Used ----------------- None Achievements -------------- None Challenges ------------ None Game ------ Seed SupersonicRestorationGun Manual? 0 Play Time 00:43:27 Cumulative 420.6 hours Start 2025.08.06 @ 13:49:40 End 2025.08.06 @ 14:30:55 Sessions 1 Manual Loads 0 Difficulty Rogue Special Mode None Game No. 192 Rogue 192 Adventurer 0 Explorer 0 Win Type - Total 30 Types 12/2/5/2/5/1/0/2/0/1 Lore% 93 Gallery% 84 Achievement% 78 Wizard Run 0 Options --------- Layout 1 ASCII 0 Keyboard 0 Movement Numpad Keybinds 0 Fullscreen 1 Font 24/Smallcaps Map View 50x35 Zoom Use 0% Tactical HUD 1 Map Filters NONE Filters NONE Steam 1 RUN: ee8a3d56-51a8-422d-8742-7f880f29bbea